[Event "Mistrovství Čech mládeže 2023 - HD14"]
[Site "Harrachov, Czech Republic"]
[Date "2023.10.26"]
[Round "7.16"]
[White "Rudlof, Adam"]
[Black "Nguyen, Nhat Minh Thu"]
[Result "1-0"]
[TimeControl "90m + 30s"]
[WhiteElo "1639"]
[BlackElo "1238"]

1. e4 {[%clk 01:30:58]} {[%emt 00:00:01]} c5 {[%clk 01:30:54]} {[%emt
00:00:07]} 2. Nf3 {[%clk 01:31:23]} {[%emt 00:00:05]} d6 {[%clk 01:31:05]}
{[%emt 00:00:19]} 3. d4 {[%clk 01:31:48]} {[%emt 00:00:05]} cxd4 {[%clk
01:31:27]} {[%emt 00:00:08]} 4. Nxd4 {[%clk 01:32:13]} {[%emt 00:00:05]} Nf6
{[%clk 01:31:51]} {[%emt 00:00:07]} 5. Nc3 {[%clk 01:32:39]} {[%emt 00:00:04]}
a6 {[%clk 01:31:37]} {[%emt 00:00:45]} 6. h3 {[%clk 01:33:02]} {[%emt
00:00:06]} e6 {[%clk 01:31:54]} {[%emt 00:00:13]} 7. g4 {[%clk 01:33:25]}
{[%emt 00:00:07]} Be7 {[%clk 01:31:56]} {[%emt 00:00:29]} 8. g5 {[%emt
00:01:14]} Nfd7 {[%clk 01:31:45]} 9. Be3 {[%clk 01:33:41]} {[%emt 00:00:11]}
Bxg5 {[%clk 01:27:33]} {[%emt 00:04:42]} 10. Nxe6 {[%clk 01:34:05]} {[%emt
00:00:06]} fxe6 {[%clk 01:14:09]} {[%emt 00:13:54]} 11. Qh5+ {[%clk 01:34:27]}
{[%emt 00:00:08]} g6 {[%clk 01:14:19]} {[%emt 00:00:20]} 12. Qxg5 {[%clk
01:34:53]} {[%emt 00:00:04]} Qxg5 {[%clk 01:14:02]} {[%emt 00:00:47]} 13. Bxg5
{[%clk 01:35:14]} {[%emt 00:00:07]} h6 {[%clk 01:09:51]} {[%emt 00:04:43]} 14.
Be3 {[%clk 01:32:58]} {[%emt 00:02:45]} Nc6 {[%clk 01:01:10]} {[%emt 00:09:13]}
15. O-O-O {[%clk 01:30:00]} {[%emt 00:03:28]} Ke7 {[%clk 00:59:49]} {[%emt
00:01:51]} 16. f4 {[%clk 01:20:09]} {[%emt 00:10:20]} b5 {[%clk 00:50:09]}
{[%emt 00:10:11]} 17. Rg1 {[%clk 01:06:54]} {[%emt 00:13:43]} Nf6 {[%clk
00:33:06]} {[%emt 00:17:35]} 18. Rxg6 {[%clk 00:48:48]} {[%emt 00:18:36]} b4
{[%clk 00:33:11]} {[%emt 00:00:25]} 19. Na4 {[%clk 00:43:04]} {[%emt 00:06:14]}
Nxe4 {[%clk 00:22:39]} {[%emt 00:11:03]} 20. Bg2 {[%clk 00:43:16]} {[%emt
00:00:17]} d5 {[%clk 00:22:41]} {[%emt 00:00:29]} 21. Bxe4 {[%clk 00:38:48]}
{[%emt 00:04:58]} dxe4 {[%clk 00:22:21]} {[%emt 00:00:50]} 22. Nc5 {[%clk
00:38:27]} {[%emt 00:00:50]} e5 {[%clk 00:19:27]} {[%emt 00:03:25]} 23. Rxc6
{[%clk 00:37:53]} {[%emt 00:01:04]} exf4 {[%emt 00:03:38]} 24. Bxf4 {[%clk
00:38:03]} {[%emt 00:00:18]} Bxh3 {[%clk 00:16:11]} {[%emt 00:00:39]} 25. Rxh6
{[%clk 00:33:02]} {[%emt 00:05:31]} Rxh6 {[%clk 00:15:34]} {[%emt 00:01:07]} 26.
Bxh6 {[%clk 00:33:25]} {[%emt 00:00:07]} Kf6 {[%clk 00:14:06]} {[%emt
00:01:58]} 27. Nxe4+ {[%clk 00:32:20]} {[%emt 00:01:35]} Kg6 {[%clk 00:13:33]}
{[%emt 00:01:03]} 28. Nf2 {[%clk 00:25:04]} {[%emt 00:07:43]} Bf5 {[%clk
00:13:36]} {[%emt 00:00:30]} 29. Be3 {[%clk 00:23:35]} {[%emt 00:01:56]} Rc8
{[%clk 00:13:49]} {[%emt 00:00:20]} 30. Rd6+ {[%clk 00:23:39]} {[%emt
00:00:24]} Kf7 {[%clk 00:14:03]} {[%emt 00:00:16]} 31. Nd3 {[%clk 00:22:00]}
{[%emt 00:02:08]} Ke7 {[%clk 00:13:28]} {[%emt 00:01:07]} 32. Rd5 {[%clk
00:21:12]} {[%emt 00:01:12]} Bg4 {[%clk 00:11:35]} {[%emt 00:02:28]} 33. Bc5+
{[%clk 00:20:02]} {[%emt 00:01:39]} Ke6 {[%clk 00:11:26]} {[%emt 00:00:40]} 34.
Re5+ {[%clk 00:19:57]} {[%emt 00:00:33]} Kf6 {[%clk 00:11:43]} {[%emt
00:00:14]} 35. Bxb4 {[%clk 00:19:33]} {[%emt 00:00:55]} Bf5 {[%clk 00:11:53]}
{[%emt 00:00:20]} 36. Be7+ {[%clk 00:19:44]} {[%emt 00:00:18]} Kg6 {[%clk
00:11:57]} {[%emt 00:00:26]} 37. Nf4+ {[%clk 00:19:44]} {[%emt 00:00:27]} 1-0

[Event "Mistrovství Čech mládeže 2023 - HD14"]
[Site "Harrachov, Czech Republic"]
[Date "2023.10.26"]
[Round "7.17"]
[White "Němec, Mikuláš"]
[Black "Pásek, Josef"]
[Result "0-1"]
[TimeControl "90m + 30s"]
[WhiteElo "1154"]
[BlackElo "1555"]

1. d4 {[%clk 01:30:54]} {[%emt 00:00:04]} Nf6 {[%clk 01:30:56]} {[%emt
00:00:05]} 2. Nf3 {[%clk 01:31:16]} {[%emt 00:00:08]} c5 {[%clk 01:31:18]}
{[%emt 00:00:08]} 3. dxc5 {[%clk 01:28:44]} {[%emt 00:03:03]} Qa5+ {[%clk
01:18:06]} {[%emt 00:13:42]} 4. Nc3 {[%clk 01:23:10]} {[%emt 00:06:04]} e6
{[%clk 01:08:09]} {[%emt 00:10:27]} 5. Bf4 {[%clk 01:13:13]} {[%emt 00:10:26]}
Ne4 {[%clk 01:01:59]} {[%emt 00:06:41]} 6. Bd2 {[%clk 01:07:01]} {[%emt
00:06:41]} Nxd2 {[%clk 01:01:31]} {[%emt 00:00:58]} 7. Qxd2 {[%clk 01:04:05]}
{[%emt 00:03:26]} Bxc5 {[%clk 01:01:18]} {[%emt 00:00:44]} 8. e3 {[%clk
01:04:10]} {[%emt 00:00:24]} d5 {[%clk 00:58:33]} {[%emt 00:03:15]} 9. Bb5+
{[%clk 01:00:23]} {[%emt 00:04:18]} Bd7 {[%clk 00:57:05]} {[%emt 00:01:58]} 10.
Bxd7+ {[%clk 01:00:34]} {[%emt 00:00:19]} Nxd7 {[%clk 00:57:27]} {[%emt
00:00:07]} 11. O-O {[%clk 01:00:41]} {[%emt 00:00:24]} Bb4 {[%clk 00:57:36]}
{[%emt 00:00:21]} 12. Nd4 {[%clk 00:55:35]} {[%emt 00:05:36]} Bxc3 {[%clk
00:53:29]} {[%emt 00:04:37]} 13. Qxc3 {[%clk 00:55:51]} {[%emt 00:00:14]} Qxc3
{[%clk 00:53:53]} {[%emt 00:00:05]} 14. bxc3 {[%clk 00:56:17]} {[%emt
00:00:05]} O-O {[%clk 00:39:25]} {[%emt 00:14:58]} 15. c4 {[%clk 00:46:06]}
{[%emt 00:10:40]} dxc4 {[%clk 00:39:16]} {[%emt 00:00:39]} 16. Rfd1 {[%clk
00:43:58]} {[%emt 00:02:38]} Nc5 {[%clk 00:34:28]} {[%emt 00:05:18]} 17. Rab1
{[%clk 00:42:26]} {[%emt 00:02:02]} a6 {[%clk 00:17:19]} {[%emt 00:17:39]} 18.
Ne2 {[%clk 00:34:15]} {[%emt 00:08:41]} Rfd8 {[%clk 00:13:52]} {[%emt
00:03:57]} 19. Nc3 {[%clk 00:32:38]} {[%emt 00:02:07]} b5 {[%clk 00:13:31]}
{[%emt 00:00:52]} 20. Kf1 {[%clk 00:29:01]} {[%emt 00:04:06]} Kf8 {[%clk
00:13:19]} {[%emt 00:00:42]} 21. Ke1 {[%clk 00:27:01]} {[%emt 00:02:30]} Rxd1+
{[%clk 00:12:37]} {[%emt 00:01:12]} 22. Kxd1 {[%clk 00:25:37]} {[%emt
00:01:53]} Ke7 {[%clk 00:12:10]} {[%emt 00:00:57]} 23. Rb4 {[%clk 00:24:20]}
{[%emt 00:01:47]} Kd6 {[%clk 00:11:25]} {[%emt 00:01:14]} 24. Ke2 {[%clk
00:20:16]} {[%emt 00:04:35]} f5 {[%clk 00:10:40]} {[%emt 00:01:15]} 25. f4
{[%clk 00:19:29]} {[%emt 00:01:16]} Ne4 {[%clk 00:10:08]} {[%emt 00:01:02]} 26.
Nxe4+ {[%clk 00:19:17]} {[%emt 00:00:42]} fxe4 {[%clk 00:10:37]} {[%emt
00:00:01]} 27. a4 {[%clk 00:19:38]} {[%emt 00:00:10]} Kc5 {[%clk 00:10:52]}
{[%emt 00:00:14]} 28. c3 {[%clk 00:19:59]} {[%emt 00:00:09]} Rd8 {[%clk
00:10:30]} {[%emt 00:00:53]} 29. Rb2 {[%clk 00:16:53]} {[%emt 00:03:36]} Rd3
{[%clk 00:10:52]} {[%emt 00:00:08]} 30. Rc2 {[%clk 00:16:34]} {[%emt 00:00:49]}
bxa4 {[%clk 00:10:34]} {[%emt 00:00:48]} 0-1

[Event "Mistrovství Čech mládeže 2023 - HD14"]
[Site "Harrachov, Czech Republic"]
[Date "2023.10.26"]
[Round "7.18"]
[White "Holeš, Vojta"]
[Black "Mezera, Antonín"]
[Result "1/2-1/2"]
[TimeControl "90m + 30s"]
[WhiteElo "1440"]
[BlackElo "1166"]

1. e4 {[%clk 01:30:58]} c5 {[%clk 01:30:51]} {[%emt 00:00:09]} 2. Nf3 {[%clk
01:31:24]} {[%emt 00:00:04]} e6 {[%clk 01:30:59]} {[%emt 00:00:22]} 3. d4
{[%clk 01:30:46]} {[%emt 00:01:08]} cxd4 {[%clk 01:31:23]} {[%emt 00:00:06]} 4.
Nxd4 {[%clk 01:30:29]} {[%emt 00:00:47]} Nc6 {[%clk 01:31:41]} {[%emt
00:00:13]} 5. Nc3 {[%clk 01:30:30]} {[%emt 00:00:29]} Nf6 {[%clk 01:28:36]}
{[%emt 00:03:34]} 6. Bg5 {[%clk 01:30:05]} {[%emt 00:00:54]} Be7 {[%clk
01:28:26]} {[%emt 00:00:40]} 7. f4 {[%clk 01:29:30]} {[%emt 00:01:05]} h6
{[%clk 01:27:15]} {[%emt 00:01:41]} 8. Bh4 {[%clk 01:29:11]} {[%emt 00:00:49]}
Nxe4 {[%clk 01:17:54]} {[%emt 00:09:52]} 9. Bxe7 {[%clk 01:28:39]} {[%emt
00:01:02]} Nxc3 {[%clk 01:18:02]} {[%emt 00:00:22]} 10. Nxc6 {[%clk 01:14:51]}
{[%emt 00:14:18]} bxc6 {[%clk 01:18:30]} {[%emt 00:00:01]} 11. Bxd8 {[%clk
01:13:58]} {[%emt 00:01:23]} Nxd1 {[%clk 01:18:56]} {[%emt 00:00:04]} 12. Ba5
{[%clk 01:13:47]} {[%emt 00:00:41]} Nxb2 {[%clk 01:18:20]} {[%emt 00:01:05]} 13.
Bc3 {[%clk 01:14:00]} {[%emt 00:00:17]} Na4 {[%clk 01:18:49]} {[%emt 00:00:01]}
14. Bxg7 {[%clk 01:14:18]} {[%emt 00:00:12]} Rh7 {[%clk 01:19:09]} {[%emt
00:00:10]} 15. Bf6 {[%clk 01:14:17]} {[%emt 00:00:32]} Nc5 {[%clk 01:14:40]}
{[%emt 00:04:58]} 16. Rb1 {[%clk 01:08:00]} {[%emt 00:06:47]} Ba6 {[%clk
01:13:27]} {[%emt 00:01:44]} 17. Bxa6 {[%clk 01:06:37]} {[%emt 00:01:52]} Nxa6
{[%clk 01:13:34]} {[%emt 00:00:24]} 18. O-O {[%clk 01:06:57]} {[%emt 00:00:09]}
Nc5 {[%clk 01:13:07]} {[%emt 00:00:57]} 19. Rb4 {[%clk 01:06:36]} {[%emt
00:00:51]} d5 {[%clk 01:09:46]} {[%emt 00:03:51]} 20. Rf3 {[%clk 01:05:14]}
{[%emt 00:01:51]} Ne4 {[%clk 01:09:21]} {[%emt 00:00:54]} 21. Be5 {[%clk
01:03:19]} {[%emt 00:02:25]} f6 {[%clk 01:09:30]} {[%emt 00:00:21]} 22. Bb2
{[%clk 01:03:26]} {[%emt 00:00:23]} Rc7 {[%clk 01:06:25]} {[%emt 00:03:35]} 23.
Rh3 {[%clk 01:03:09]} {[%emt 00:00:48]} Rh7 {[%clk 00:58:37]} {[%emt 00:08:18]}
24. Rbb3 {[%emt 00:02:18]} 1/2-1/2

[Event "Mistrovství Čech mládeže 2023 - HD14"]
[Site "Harrachov, Czech Republic"]
[Date "2023.10.27"]
[Round "8.1"]
[White "Topenčík, Bruno"]
[Black "Švadlenka, Michal"]
[Result "1-0"]
[TimeControl "90m + 30s"]
[WhiteElo "1832"]
[BlackElo "1651"]

1. e4 {[%clk 01:30:54]} {[%emt 00:00:05]} c5 {[%clk 01:30:57]} {[%emt
00:00:04]} 2. Nf3 {[%clk 01:31:20]} {[%emt 00:00:04]} d6 {[%clk 01:31:22]}
{[%emt 00:00:04]} 3. d4 {[%clk 01:31:46]} {[%emt 00:00:04]} cxd4 {[%clk
01:31:47]} {[%emt 00:00:05]} 4. Nxd4 {[%clk 01:32:12]} {[%emt 00:00:04]} Nf6
{[%clk 01:32:12]} {[%emt 00:00:06]} 5. f3 {[%clk 01:32:37]} {[%emt 00:00:05]}
g6 {[%clk 01:32:37]} {[%emt 00:00:05]} 6. c4 {[%clk 01:33:02]} {[%emt
00:00:04]} Bg7 {[%clk 01:32:36]} {[%emt 00:00:31]} 7. Nc3 {[%clk 01:33:26]}
{[%emt 00:00:06]} O-O {[%clk 01:32:52]} {[%emt 00:00:14]} 8. Be3 {[%clk
01:33:51]} {[%emt 00:00:05]} Nc6 {[%clk 01:33:10]} {[%emt 00:00:12]} 9. Qd2
{[%clk 01:34:03]} {[%emt 00:00:17]} Bd7 {[%clk 01:30:58]} {[%emt 00:02:43]} 10.
Be2 {[%clk 01:34:22]} {[%emt 00:00:11]} Rc8 {[%clk 01:29:32]} {[%emt 00:01:56]}
11. O-O {[%clk 01:34:27]} {[%emt 00:00:25]} Ne5 {[%clk 01:25:30]} {[%emt
00:04:33]} 12. b3 {[%clk 01:32:18]} {[%emt 00:02:39]} a5 {[%clk 01:16:35]}
{[%emt 00:09:25]} 13. Rac1 {[%clk 01:28:51]} {[%emt 00:03:56]} Ne8 {[%clk
00:59:47]} {[%emt 00:17:18]} 14. f4 {[%clk 01:17:00]} {[%emt 00:12:21]} Nc6
{[%clk 00:59:44]} {[%emt 00:00:33]} 15. f5 {[%clk 01:14:54]} {[%emt 00:02:36]}
Nxd4 {[%clk 00:49:57]} {[%emt 00:10:17]} 16. Bxd4 {[%clk 01:15:16]} {[%emt
00:00:08]} Bxd4+ {[%clk 00:43:43]} {[%emt 00:06:45]} 17. Qxd4 {[%clk 01:15:38]}
{[%emt 00:00:07]} Ng7 {[%clk 00:41:18]} {[%emt 00:02:55]} 18. Rf3 {[%clk
01:08:02]} {[%emt 00:08:05]} Bc6 {[%clk 00:35:03]} {[%emt 00:06:46]} 19. Qe3
{[%clk 01:05:04]} {[%emt 00:03:28]} Ne8 {[%clk 00:25:08]} {[%emt 00:10:25]} 20.
Qh6 {[%clk 00:59:42]} {[%emt 00:05:51]} Nf6 {[%clk 00:24:36]} {[%emt 00:01:02]}
21. Rh3 {[%clk 00:59:05]} {[%emt 00:01:06]} Kh8 {[%clk 00:22:43]} {[%emt
00:02:24]} 22. fxg6 {[%clk 00:43:06]} {[%emt 00:16:29]} fxg6 {[%clk 00:23:12]}
{[%emt 00:00:02]} 23. Rf1 {[%clk 00:42:38]} {[%emt 00:00:57]} Rf7 {[%clk
00:16:55]} {[%emt 00:06:47]} 24. Qe3 {[%clk 00:37:48]} {[%emt 00:05:20]} Bd7
{[%clk 00:10:36]} {[%emt 00:06:50]} 25. Rhf3 {[%clk 00:36:49]} {[%emt
00:01:28]} Qg8 {[%clk 00:05:34]} {[%emt 00:05:32]} 26. Nd5 {[%clk 00:28:47]}
{[%emt 00:08:32]} Qf8 {[%clk 00:01:57]} {[%emt 00:04:07]} 27. Qc3 {[%clk
00:26:41]} {[%emt 00:02:35]} Kg7 {[%clk 00:01:38]} {[%emt 00:00:49]} 28. Nxf6
{[%clk 00:22:09]} {[%emt 00:05:02]} exf6 {[%clk 00:01:39]} {[%emt 00:00:30]} 29.
Qxa5 {[%clk 00:21:59]} {[%emt 00:00:39]} Rc5 {[%clk 00:01:37]} {[%emt
00:00:33]} 30. Qd2 {[%clk 00:22:03]} {[%emt 00:00:25]} Bc6 {[%clk 00:00:59]}
{[%emt 00:01:10]} 31. Rd3 {[%clk 00:21:26]} {[%emt 00:01:07]} Bxe4 {[%clk
00:00:51]} {[%emt 00:00:38]} 32. Rxd6 {[%clk 00:21:44]} {[%emt 00:00:11]} Rg5
{[%clk 00:01:02]} {[%emt 00:00:20]} 33. Bf3 {[%clk 00:21:50]} {[%emt 00:00:23]}
Bxf3 {[%clk 00:00:47]} {[%emt 00:00:45]} 34. Rxf3 {[%clk 00:22:14]} {[%emt
00:00:06]} Qe7 {[%clk 00:01:02]} {[%emt 00:00:16]} 35. Rfd3 {[%clk 00:18:19]}
{[%emt 00:04:25]} Qe5 {[%clk 00:00:57]} {[%emt 00:00:35]} 36. Re3 {[%clk
00:12:12]} {[%emt 00:06:37]} Qc5 {[%clk 00:01:26]} {[%emt 00:00:02]} 37. Kh1
{[%clk 00:11:25]} {[%emt 00:01:17]} Rf5 {[%clk 00:01:19]} {[%emt 00:00:37]} 38.
h3 {[%clk 00:11:03]} {[%emt 00:00:52]} Qc7 {[%clk 00:00:42]} {[%emt 00:01:07]}
39. Kg1 {[%clk 00:09:54]} {[%emt 00:01:38]} Qc5 {[%clk 00:00:51]} {[%emt
00:00:21]} 40. Rd4 {[%clk 00:08:33]} {[%emt 00:01:51]} h5 {[%clk 00:00:41]}
{[%emt 00:00:40]} 41. b4 {[%clk 00:08:44]} {[%emt 00:00:19]} Qc7 {[%clk
00:00:56]} {[%emt 00:00:15]} 42. c5 {[%clk 00:08:32]} {[%emt 00:00:41]} Re5
{[%clk 00:00:47]} {[%emt 00:00:38]} 43. Red3 {[%clk 00:07:07]} {[%emt
00:01:55]} Qe7 {[%clk 00:00:36]} {[%emt 00:00:42]} 44. Rd7 {[%clk 00:06:07]}
{[%emt 00:01:31]} Qe6 {[%clk 00:00:33]} {[%emt 00:00:33]} 45. Rxf7+ {[%clk
00:04:35]} {[%emt 00:02:01]} Kxf7 {[%clk 00:01:01]} {[%emt 00:00:02]} 46. Rd7+
{[%clk 00:04:54]} {[%emt 00:00:11]} Ke8 {[%clk 00:01:03]} {[%emt 00:00:28]} 47.
Rd8+ {[%clk 00:05:15]} {[%emt 00:00:08]} Ke7 {[%clk 00:01:01]} {[%emt
00:00:32]} 48. Qd6+ {[%clk 00:05:35]} {[%emt 00:00:10]} Qxd6 {[%clk 00:00:53]}
{[%emt 00:00:39]} 49. Rxd6 {[%clk 00:05:59]} {[%emt 00:00:05]} Re3 {[%clk
00:00:33]} {[%emt 00:00:50]} 50. Rb6 {[%clk 00:04:55]} {[%emt 00:01:35]} Ra3
{[%clk 00:00:59]} {[%emt 00:00:04]} 51. Rxb7+ {[%clk 00:05:19]} {[%emt
00:00:06]} Ke6 {[%clk 00:00:41]} {[%emt 00:00:48]} 52. b5 {[%clk 00:05:11]}
{[%emt 00:00:38]} Kd5 {[%clk 00:00:34]} {[%emt 00:00:37]} 53. Rc7 {[%clk
00:04:50]} {[%emt 00:00:51]} Rxa2 {[%clk 00:00:48]} {[%emt 00:00:16]} 54. b6
{[%clk 00:05:12]} {[%emt 00:00:08]} Ra8 {[%clk 00:00:31]} {[%emt 00:00:47]} 55.
b7 {[%clk 00:05:28]} {[%emt 00:00:14]} Rb8 {[%clk 00:01:00]} {[%emt 00:00:02]}
56. c6 {[%clk 00:05:50]} {[%emt 00:00:07]} 1-0

[Event "Mistrovství Čech mládeže 2023 - HD14"]
[Site "Harrachov, Czech Republic"]
[Date "2023.10.27"]
[Round "8.2"]
[White "Bělaška, Václav"]
[Black "Váňa, Jan"]
[Result "0-1"]
[TimeControl "90m + 30s"]
[WhiteElo "1666"]
[BlackElo "1969"]

1. e4 {[%clk 01:30:57]} {[%emt 00:00:02]} c5 {[%clk 01:30:39]} {[%emt
00:00:22]} 2. Bc4 {[%clk 01:31:23]} {[%emt 00:00:04]} Nc6 {[%clk 01:30:16]}
{[%emt 00:00:53]} 3. Nf3 {[%clk 01:31:42]} {[%emt 00:00:12]} Nf6 {[%clk
01:28:35]} {[%emt 00:02:11]} 4. Nc3 {[%clk 01:31:51]} {[%emt 00:00:20]} e6
{[%clk 01:28:24]} {[%emt 00:00:41]} 5. Qe2 {[%clk 01:32:12]} {[%emt 00:00:10]}
a6 {[%clk 01:20:17]} {[%emt 00:08:37]} 6. a4 {[%clk 01:32:29]} {[%emt
00:00:13]} Be7 {[%clk 01:07:11]} {[%emt 00:13:35]} 7. e5 {[%clk 01:30:09]}
{[%emt 00:02:50]} Ng4 {[%clk 01:04:25]} {[%emt 00:03:15]} 8. d3 {[%clk
01:21:23]} {[%emt 00:09:16]} f6 {[%clk 00:58:38]} {[%emt 00:06:17]} 9. Nh4
{[%clk 01:11:49]} {[%emt 00:10:04]} Ngxe5 {[%clk 00:45:20]} {[%emt 00:13:48]}
10. f4 {[%clk 01:06:45]} {[%emt 00:05:34]} Nd4 {[%clk 00:37:45]} {[%emt
00:08:05]} 11. Qd1 {[%clk 01:02:46]} {[%emt 00:04:29]} Nf7 {[%clk 00:34:11]}
{[%emt 00:04:04]} 12. O-O {[%clk 00:59:40]} {[%emt 00:03:36]} f5 {[%clk
00:31:38]} {[%emt 00:03:03]} 13. Nf3 {[%clk 00:59:08]} {[%emt 00:01:02]} Bf6
{[%clk 00:24:15]} {[%emt 00:07:53]} 14. Be3 {[%clk 00:58:36]} {[%emt 00:01:01]}
d5 {[%clk 00:22:51]} {[%emt 00:01:54]} 15. Ba2 {[%clk 00:57:50]} {[%emt
00:01:16]} Nxf3+ {[%clk 00:23:10]} {[%emt 00:00:11]} 16. Qxf3 {[%clk 00:56:46]}
{[%emt 00:01:35]} d4 {[%clk 00:23:30]} {[%emt 00:00:09]} 0-1

[Event "Mistrovství Čech mládeže 2023 - HD14"]
[Site "Harrachov, Czech Republic"]
[Date "2023.10.27"]
[Round "8.3"]
[White "Roubal, Matyáš"]
[Black "Ježek, Jakub"]
[Result "1-0"]
[TimeControl "90m + 30s"]
[WhiteElo "1884"]
[BlackElo "1642"]

1. e4 {[%clk 01:30:58]} {[%emt 00:00:02]} c5 {[%clk 01:30:53]} {[%emt
00:00:07]} 2. Nf3 {[%clk 01:31:23]} {[%emt 00:00:05]} d6 {[%clk 01:31:20]}
{[%emt 00:00:03]} 3. d4 {[%clk 01:31:48]} {[%emt 00:00:05]} cxd4 {[%clk
01:31:46]} {[%emt 00:00:04]} 4. Nxd4 {[%clk 01:32:14]} {[%emt 00:00:04]} Nf6
{[%clk 01:32:14]} {[%emt 00:00:03]} 5. Nc3 {[%clk 01:32:40]} {[%emt 00:00:05]}
Nc6 {[%clk 01:32:40]} {[%emt 00:00:03]} 6. Bc4 {[%clk 01:30:42]} {[%emt
00:02:28]} e5 {[%clk 01:32:44]} {[%emt 00:00:25]} 7. Nb3 {[%clk 01:29:59]}
{[%emt 00:01:14]} Be7 {[%clk 01:32:05]} {[%emt 00:01:09]} 8. O-O {[%clk
01:28:30]} {[%emt 00:01:59]} Be6 {[%clk 01:31:46]} {[%emt 00:00:48]} 9. Qe2
{[%clk 01:23:02]} {[%emt 00:06:00]} Bxc4 {[%clk 01:30:28]} {[%emt 00:01:48]} 10.
Qxc4 {[%clk 01:23:27]} {[%emt 00:00:04]} Rc8 {[%clk 01:30:10]} {[%emt
00:00:47]} 11. Bg5 {[%clk 01:19:30]} {[%emt 00:04:28]} O-O {[%clk 01:28:10]}
{[%emt 00:02:30]} 12. Bxf6 {[%clk 01:15:43]} {[%emt 00:04:16]} Bxf6 {[%clk
01:28:28]} {[%emt 00:00:12]} 13. Qd3 {[%clk 01:14:53]} {[%emt 00:01:21]} Nd4
{[%clk 01:04:59]} {[%emt 00:23:59]} 14. Nxd4 {[%clk 01:14:34]} {[%emt
00:00:49]} exd4 {[%clk 01:05:24]} {[%emt 00:00:05]} 15. Nd5 {[%clk 01:14:52]}
{[%emt 00:00:12]} g6 {[%clk 00:59:28]} {[%emt 00:06:25]} 16. Nxf6+ {[%clk
01:14:17]} {[%emt 00:01:05]} Qxf6 {[%clk 00:59:57]} {[%emt 00:00:02]} 17. Rfd1
{[%clk 01:14:06]} {[%emt 00:00:40]} Rc6 {[%clk 00:57:20]} {[%emt 00:03:08]} 18.
Rac1 {[%clk 01:13:17]} {[%emt 00:01:19]} Rfc8 {[%clk 00:57:15]} {[%emt
00:00:34]} 19. Rd2 {[%clk 01:13:37]} {[%emt 00:00:11]} Qe5 {[%clk 00:51:59]}
{[%emt 00:05:46]} 20. f3 {[%clk 01:13:22]} {[%emt 00:00:45]} Qc5 {[%clk
00:36:40]} {[%emt 00:15:49]} 21. Kf1 {[%clk 01:10:46]} {[%emt 00:03:07]} Qc4
{[%clk 00:31:10]} {[%emt 00:05:59]} 22. Qxc4 {[%clk 01:10:30]} {[%emt
00:00:46]} Rxc4 {[%clk 00:31:40]} {[%emt 00:00:01]} 23. Ke2 {[%clk 01:10:29]}
{[%emt 00:00:31]} Ra4 {[%clk 00:25:52]} {[%emt 00:06:17]} 24. a3 {[%clk
01:10:41]} {[%emt 00:00:20]} Kg7 {[%clk 00:24:09]} {[%emt 00:02:12]} 25. Ra1
{[%clk 01:09:58]} {[%emt 00:01:12]} Kf6 {[%clk 00:22:34]} {[%emt 00:02:04]} 26.
Kd3 {[%clk 01:08:05]} {[%emt 00:02:24]} Rac4 {[%clk 00:17:12]} {[%emt
00:05:51]} 27. Rc1 {[%clk 01:06:11]} {[%emt 00:02:25]} Ra4 {[%clk 00:12:10]}
{[%emt 00:05:31]} 28. Ra1 {[%clk 01:06:37]} {[%emt 00:00:04]} Rac4 {[%clk
00:12:24]} {[%emt 00:00:16]} 29. Ra2 {[%clk 01:07:05]} {[%emt 00:00:03]} Ke5
{[%clk 00:10:42]} {[%emt 00:02:12]} 30. g3 {[%clk 01:07:27]} {[%emt 00:00:07]}
g5 {[%clk 00:10:55]} {[%emt 00:00:16]} 31. Ra1 {[%clk 01:07:09]} {[%emt
00:00:48]} R8c7 {[%clk 00:09:29]} {[%emt 00:01:57]} 32. Rf1 {[%clk 01:07:30]}
{[%emt 00:00:09]} f6 {[%clk 00:08:36]} {[%emt 00:01:22]} 33. f4+ {[%clk
01:07:43]} {[%emt 00:00:17]} gxf4 {[%clk 00:09:05]} {[%emt 00:00:01]} 34. gxf4+
{[%clk 01:08:06]} {[%emt 00:00:06]} Ke6 {[%clk 00:09:21]} {[%emt 00:00:13]} 35.
Rff2 {[%clk 01:06:38]} {[%emt 00:01:59]} b5 {[%clk 00:09:00]} {[%emt 00:00:52]}
36. b3 {[%clk 01:05:41]} {[%emt 00:01:28]} Rc3+ {[%clk 00:08:28]} {[%emt
00:01:02]} 37. Kxd4 {[%clk 01:06:06]} {[%emt 00:00:05]} f5 {[%clk 00:07:27]}
{[%emt 00:01:31]} 38. Rg2 {[%clk 01:04:44]} {[%emt 00:01:52]} a5 {[%clk
00:05:34]} {[%emt 00:02:24]} 39. exf5+ Kxf5 {[%clk 00:06:03]} 40. Rg5+ {[%clk
01:04:16]} {[%emt 00:00:14]} Kxf4 {[%clk 00:06:32]} {[%emt 00:00:01]} 41. Rxb5
{[%clk 01:04:41]} {[%emt 00:00:05]} Rxc2 {[%clk 00:06:44]} {[%emt 00:00:18]} 42.
Rxc2 {[%clk 01:05:09]} {[%emt 00:00:02]} Rxc2 {[%clk 00:07:06]} {[%emt
00:00:08]} 43. Rh5 {[%clk 01:05:10]} {[%emt 00:00:29]} a4 {[%clk 00:04:45]}
{[%emt 00:02:52]} 44. bxa4 {[%clk 01:04:04]} {[%emt 00:01:36]} Rc7 {[%clk
00:03:18]} {[%emt 00:01:56]} 45. a5 {[%clk 01:04:09]} {[%emt 00:00:26]} Kg4
{[%clk 00:02:24]} {[%emt 00:01:24]} 46. Rb5 {[%clk 01:04:02]} {[%emt 00:00:36]}
Ra7 {[%clk 00:01:25]} {[%emt 00:01:30]} 47. Kc4 {[%clk 01:04:25]} {[%emt
00:00:07]} Kh3 {[%clk 00:01:41]} {[%emt 00:00:13]} 48. Rh5+ {[%clk 01:04:03]}
{[%emt 00:00:51]} Kg4 {[%clk 00:02:06]} {[%emt 00:00:06]} 49. Rd5 {[%clk
01:04:30]} {[%emt 00:00:03]} Kh3 {[%clk 00:01:36]} {[%emt 00:01:00]} 50. Kb5
{[%clk 01:04:52]} {[%emt 00:00:08]} Kxh2 {[%clk 00:01:23]} {[%emt 00:00:42]} 51.
Rxd6 {[%clk 01:05:14]} {[%emt 00:00:08]} Kg3 {[%clk 00:00:52]} {[%emt
00:01:01]} 52. Rh6 {[%clk 01:05:42]} {[%emt 00:00:03]} Kf4 {[%clk 00:01:10]}
{[%emt 00:00:11]} 53. Kb6 {[%clk 01:06:10]} 1-0